bitfinex/quotes_BTCUSD_20250727
["timestamp","ask_amount","ask_price","bid_price","bid_amount"]
[1753595132801,0.20291319,118390.0,118380.0,1.06694768]
[1753595135243,0.20291319,118390.0,118380.0,1.05850045]
[1753595135622,0.20291319,118390.0,118380.0,1.06694768]
[1753595136831,0.20291319,118390.0,118380.0,1.05850045]
[1753595138133,0.20291319,118390.0,118380.0,0.73456776]
[1753595138340,0.20291319,118390.0,118380.0,1.04697315]
[1753595138550,0.20291319,118390.0,118380.0,1.05542045]
[1753595140730,0.22951319,118390.0,118380.0,1.05542045]
[1753595141451,0.20598319,118390.0,118380.0,1.06386768]
[1753595141674,0.18711319,118390.0,118380.0,1.06386768]
[1753595141856,0.18711319,118390.0,118380.0,1.07539483]
[1753595143039,0.22846631,118390.0,118380.0,1.07539483]
[1753595144154,0.22638631,118390.0,118380.0,1.07539483]
[1753595144359,0.21028631,118390.0,118380.0,1.08384191]
[1753595144511,0.21028631,118390.0,118380.0,1.07539483]
[1753595145390,0.16893319,118390.0,118380.0,1.07539483]
[1753595145693,0.18543319,118390.0,118380.0,1.07539483]
[1753595148690,0.18740319,118390.0,118380.0,1.05542045]
[1753595148932,0.21400319,118390.0,118380.0,1.06386768]
[1753595149170,0.18740319,118390.0,118380.0,1.06386768]
[1753595149324,0.18740319,118390.0,118380.0,1.06694768]
[1753595151807,0.22878726,118390.0,118380.0,1.06694768]
[1753595153521,0.18740319,118390.0,118380.0,1.05850045]
[1753595156802,0.18740319,118390.0,118380.0,1.05005315]
[1753595157195,0.18740319,118390.0,118380.0,0.7485057]
[1753595157404,0.18740319,118390.0,118380.0,0.55673294]
[1753595157603,0.18740319,118390.0,118380.0,0.87221833]
[1753595158429,0.18740319,118390.0,118380.0,0.86913833]
[1753595159216,0.18740319,118390.0,118380.0,0.8775857]
[1753595160300,0.18740319,118390.0,118380.0,1.04653315]
[1753595160549,0.18740319,118390.0,118380.0,1.05498045]
[1753595160678,0.18740319,118390.0,118380.0,0.74257506]
[1753595160881,0.18740319,118390.0,118380.0,1.05806045]
[1753595161785,0.18740319,118390.0,118380.0,0.8806657]
[1753595162279,0.23006319,118390.0,118380.0,0.52756294]
[1753595162503,0.23006319,118390.0,118380.0,0.86590833]
[1753595162759,0.23006319,118390.0,118380.0,0.86794833]
[1753595164608,0.19055319,118390.0,118380.0,0.86794833]
[1753595164808,0.18740319,118390.0,118380.0,0.86794833]
[1753595166458,0.18740319,118390.0,118380.0,0.66510833]
[1753595166665,0.18740319,118390.0,118380.0,0.34962294]
[1753595166877,0.18740319,118390.0,118380.0,0.66510833]
[1753595167320,0.18740319,118390.0,118380.0,0.34962294]
[1753595167520,0.18740319,118390.0,118380.0,0.66498833]
[1753595167850,0.27225826,118390.0,118380.0,0.64008833]
[1753595168492,0.27225826,118390.0,118380.0,0.10808564]
[1753595168703,0.27225826,118390.0,118380.0,0.24008564]
[1753595169520,0.61225826,118390.0,118380.0,0.24008564]
[1753595171267,0.92774365,118390.0,118380.0,0.24008564]
[1753595171735,0.61225826,118390.0,118380.0,0.24008564]
[1753595173008,0.61225826,118390.0,118380.0,0.26294564]
[1753595173227,0.61225826,118390.0,118380.0,0.24008564]
[1753595174647,0.92774365,118390.0,118380.0,0.24008564]
[1753595174834,0.61225826,118390.0,118380.0,0.24008564]
[1753595175195,0.92774365,118390.0,118380.0,0.24008564]
[1753595177545,0.61225826,118390.0,118380.0,0.24008564]
[1753595177911,0.92774365,118390.0,118380.0,0.24008564]
[1753595184384,0.61225826,118390.0,118380.0,0.24008564]
[1753595184602,0.92774365,118390.0,118380.0,0.24008564]
[1753595185002,0.61225826,118390.0,118380.0,0.24008564]
[1753595185251,0.92774365,118390.0,118380.0,0.24008564]
[1753595186457,0.61225826,118390.0,118380.0,0.24008564]
[1753595186649,0.92774365,118390.0,118380.0,0.24008564]
[1753595192942,0.61225826,118390.0,118380.0,0.24008564]
[1753595193127,0.92774365,118390.0,118380.0,0.26379564]
[1753595193378,0.61225826,118390.0,118380.0,0.26379564]
[1753595193809,0.92774365,118390.0,118380.0,0.26379564]
[1753595194232,0.91114365,118390.0,118380.0,0.26379564]
[1753595195577,0.59565826,118390.0,118380.0,0.26379564]
[1753595195789,0.91114365,118390.0,118380.0,0.26379564]
[1753595199299,0.59565826,118390.0,118380.0,0.26379564]
[1753595199510,0.91114365,118390.0,118380.0,0.26379564]
[1753595202189,0.59565826,118390.0,118380.0,0.26379564]
[1753595204527,0.55199826,118390.0,118380.0,0.26583564]
[1753595205982,0.59519826,118390.0,118380.0,0.26583564]
[1753595207114,0.91068365,118390.0,118380.0,0.26379564]
[1753595207542,0.59519826,118390.0,118380.0,0.24008564]
[1753595207954,0.91068365,118390.0,118380.0,0.24008564]
[1753595208168,0.89478365,118390.0,118380.0,0.26583564]
[1753595208379,0.55199826,118390.0,118380.0,0.26583564]
[1753595209430,0.57612826,118390.0,118380.0,0.26583564]
[1753595210529,0.89161365,118390.0,118380.0,0.26583564]
[1753595213450,0.57612826,118390.0,118380.0,0.26583564]
[1753595213714,0.89161365,118390.0,118380.0,0.26583564]
[1753595214779,0.57612826,118390.0,118380.0,0.26583564]
[1753595217392,0.57936826,118390.0,118380.0,0.26583564]
[1753595222679,0.50893319,118390.0,118380.0,0.26897564]
[1753595222898,0.53427251,118390.0,118380.0,0.46982309]
[1753595223111,0.52582628,118390.0,118380.0,0.79375585]
[1753595223323,0.52582628,118390.0,118380.0,0.47827046]
[1753595223543,0.51737984,118390.0,118380.0,0.46982309]
[1753595223756,0.51737984,118390.0,118380.0,0.79375585]
[1753595224951,0.51737984,118390.0,118380.0,0.78530848]
[1753595225859,0.51737984,118390.0,118380.0,0.61636103]
[1753595225860,0.50893319,118390.0,118380.0,0.61636103]
[1753595226133,0.5773889,118390.0,118380.0,0.61636103]
[1753595227049,0.5773889,118390.0,118380.0,0.30087564]
[1753595227484,0.5773889,118390.0,118380.0,0.61636103]
[1753595227701,0.5773889,118390.0,118380.0,0.60086103]
[1753595228331,0.5773889,118390.0,118380.0,0.28537564]
[1753595228881,0.5773889,118390.0,118380.0,0.60086103]
[1753595230251,0.5793789,118390.0,118380.0,0.60086103]
[1753595231859,0.5793789,118390.0,118380.0,0.28537564]
[1753595232059,0.5793789,118390.0,118380.0,0.60086103]
[1753595239017,0.5793789,118390.0,118380.0,0.58132103]
[1753595239934,0.5793789,118390.0,118380.0,0.26583564]
[1753595243553,0.92217429,118390.0,118380.0,0.24008564]
[1753595243836,0.95427429,118390.0,118380.0,0.24008564]
[1753595244511,0.93867429,118390.0,118380.0,0.24008564]
[1753595245981,0.6231889,118390.0,118380.0,0.24008564]
[1753595246194,0.93867429,118390.0,118380.0,0.24008564]
[1753595250192,1.03965159,118390.0,118380.0,0.10808564]
[1753595250400,1.03965159,118390.0,118380.0,0.23944564]
[1753595252192,1.03965159,118390.0,118380.0,0.10808564]
[1753595252403,1.03965159,118390.0,118380.0,0.23940564]
[1753595252826,1.04065159,118390.0,118380.0,0.23940564]
[1753595253035,1.04165159,118390.0,118380.0,0.23940564]
[1753595254017,1.04065159,118390.0,118380.0,0.23940564]
[1753595254433,1.04265159,118390.0,118380.0,0.23940564]
[1753595256237,0.95817429,118390.0,118380.0,0.23940564]
[1753595258608,0.98355229,118390.0,118380.0,0.23940564]
[1753595259448,0.6680669,118390.0,118380.0,0.23940564]
[1753595259657,0.98355229,118390.0,118380.0,0.23940564]
[1753595260300,0.6680669,118390.0,118380.0,0.23940564]
[1753595260532,0.98355229,118390.0,118380.0,0.23940564]
[1753595260950,0.6680669,118390.0,118380.0,0.23940564]
[1753595261163,0.98355229,118390.0,118380.0,0.23940564]
[1753595270638,0.96705229,118390.0,118380.0,0.26374564]
[1753595271660,0.85279658,118390.0,118380.0,0.26887564]
[1753595271864,0.85279658,118390.0,118380.0,0.28487564]
[1753595272518,0.53731119,118390.0,118380.0,0.28487564]
[1753595272726,0.85279658,118390.0,118380.0,0.29997564]
[1753595272939,0.53731119,118390.0,118380.0,0.28487564]
[1753595273153,0.85279658,118390.0,118380.0,0.28487564]
[1753595273642,0.93727388,118390.0,118380.0,0.28487564]
[1753595277240,0.93928388,118390.0,118380.0,0.28487564]
[1753595278321,0.93928388,118390.0,118380.0,0.28191564]
[1753595279124,0.93928388,118390.0,118380.0,0.26591564]
[1753595280455,0.62379849,118390.0,118380.0,0.26591564]
[1753595280660,0.93928388,118390.0,118380.0,0.26591564]
[1753595281482,0.62379849,118390.0,118380.0,0.26591564]
[1753595281688,0.53932119,118390.0,118380.0,0.26591564]
[1753595281900,0.85480658,118390.0,118380.0,0.26591564]
[1753595286000,0.87915658,118390.0,118380.0,0.26591564]
[1753595286801,0.88217658,118390.0,118380.0,0.26591564]
[1753595287125,0.96665388,118390.0,118380.0,0.26591564]
[1753595290654,0.65116849,118390.0,118380.0,0.26591564]
[1753595290834,0.96665388,118390.0,118380.0,0.26591564]
[1753595292476,0.96665388,118390.0,118380.0,0.26374564]
[1753595295365,0.96665388,118390.0,118380.0,0.23940564]
[1753595295573,0.98255388,118390.0,118380.0,0.23940564]
[1753595296333,0.99875388,118390.0,118380.0,0.23940564]
[1753595297608,0.99875388,118390.0,118380.0,0.23908564]
[1753595298052,0.99875388,118390.0,118380.0,0.10808564]
[1753595298263,0.99875388,118390.0,118380.0,0.23904564]
[1753595299869,0.68326849,118390.0,118380.0,0.23904564]
[1753595300100,0.99875388,118390.0,118380.0,0.23904564]
[1753595301039,0.68326849,118390.0,118380.0,0.23904564]
[1753595301319,0.99875388,118390.0,118380.0,0.23904564]
[1753595302460,1.33800629,118390.0,118380.0,0.23904564]
[1753595302688,1.42248359,118390.0,118380.0,0.23904564]
[1753595303155,1.1069982,118390.0,118380.0,0.23904564]
[1753595303632,1.08323118,118390.0,118380.0,0.23904564]
[1753595303876,1.10699436,118390.0,118380.0,0.23904564]
[1753595304455,1.09115155,118390.0,118380.0,0.23904564]
[1753595307608,1.10698973,118390.0,118380.0,0.23904564]
[1753595310385,1.10698731,118390.0,118380.0,0.23904564]
[1753595312223,1.15698731,118390.0,118380.0,0.10808564]
[1753595312440,1.4724727,118390.0,118380.0,0.23900564]
[1753595312887,6.4724727,118390.0,118380.0,0.10808564]
[1753595313101,6.47246671,118390.0,118380.0,0.23896564]
[1753595322316,6.47246671,118390.0,118380.0,0.10808564]
[1753595322553,6.47246671,118390.0,118380.0,0.23896564]
[1753595323199,6.47246614,118390.0,118380.0,0.23896564]
[1753595324672,6.47246614,118390.0,118380.0,0.10808564]
[1753595324893,6.47246614,118390.0,118380.0,0.23892564]
[1753595326075,6.46455269,118390.0,118380.0,0.23892564]
[1753595326963,6.44871657,118390.0,118380.0,0.23892564]
[1753595328244,6.47247328,118390.0,118380.0,0.23892564]
[1753595328471,6.46455551,118390.0,118380.0,0.23892564]
[1753595328694,6.45663604,118390.0,118380.0,0.10808564]
[1753595328913,6.47247498,118390.0,118380.0,0.23892564]
[1753595329583,6.46455551,118390.0,118380.0,0.23892564]
[1753595330070,6.44871657,118390.0,118380.0,0.23892564]
[1753595330321,5.84150537,118390.0,118380.0,0.23892564]
[1753595330531,6.47247615,118390.0,118380.0,0.23892564]
[1753595333127,1.15699076,118390.0,118380.0,0.23892564]
[1753595334392,1.14079076,118390.0,118380.0,0.23892564]
[1753595334639,1.14079076,118390.0,118380.0,0.26377564]
[1753595335849,1.14079076,118390.0,118380.0,0.13293564]
[1753595335991,1.14079076,118390.0,118380.0,0.26369564]
[1753595336187,1.09752076,118390.0,118380.0,0.26582564]
[1753595336425,1.09752076,118390.0,118380.0,0.26880564]
[1753595337031,1.09752076,118390.0,118380.0,0.26582564]
[1753595337431,1.1034636,118390.0,118380.0,0.26582564]
[1753595338758,1.1276336,118390.0,118380.0,0.26582564]
[1753595339186,1.1430336,118390.0,118380.0,0.26582564]
[1753595339615,1.1461836,118390.0,118380.0,0.26582564]
[1753595339830,0.83069821,118390.0,118380.0,0.26582564]
[1753595340041,1.1307836,118390.0,118380.0,0.26582564]
[1753595340529,1.13079249,118390.0,118380.0,0.26582564]
[1753595342527,1.11494388,118390.0,118380.0,0.26582564]
[1753595342727,1.13079346,118390.0,118380.0,0.26582564]
[1753595344475,1.47887885,118390.0,118380.0,0.23884564]
[1753595345288,6.47887885,118390.0,118380.0,0.23884564]
[1753595345506,1.47888561,118390.0,118380.0,0.23884564]
[1753595345719,6.47888561,118390.0,118380.0,0.23884564]
[1753595348393,6.47888616,118390.0,118380.0,0.23880564]
[1753595348819,0.18585739,118370.0,118360.0,0.02485]
[1753595349024,0.65893178,118370.0,118360.0,0.15766]
[1753595349252,0.36722314,118370.0,118360.0,0.15766]
[1753595349458,0.70016713,118370.0,118360.0,0.15766]
[1753595350848,0.70316713,118370.0,118360.0,0.15766]
[1753595351701,0.70716713,118370.0,118360.0,0.15766]
[1753595354006,0.69131578,118370.0,118360.0,0.15766]
[1753595354213,0.70715369,118370.0,118360.0,0.15766]
[1753595357133,0.70715369,118370.0,118360.0,0.17416]
[1753595357337,0.70715369,118370.0,118360.0,0.17714]
[1753595358793,0.70715369,118370.0,118360.0,0.15766]
[1753595362600,0.73447369,118370.0,118360.0,0.15766]
[1753595364445,1.10747369,118370.0,118360.0,0.13068]
[1753595365327,1.09097369,118370.0,118360.0,0.13068]
[1753595365851,1.09096802,118370.0,118360.0,0.13068]
[1753595367069,0.17742465,118360.0,118350.0,0.04135]
[1753595367286,0.57954734,118360.0,118350.0,0.17405]
[1753595367499,0.59537979,118360.0,118350.0,0.17405]
[1753595367731,0.62076379,118360.0,118350.0,0.17405]
[1753595367951,0.70524109,118360.0,118350.0,0.17405]
[1753595368165,1.07276109,118360.0,118350.0,0.15755]
[1753595368387,1.07476109,118360.0,118350.0,0.15755]
[1753595368628,1.07676109,118360.0,118350.0,0.15755]
[1753595369119,1.07676109,118360.0,118350.0,0.1306]
[1753595369814,0.7612757,118360.0,118350.0,0.1535]
[1753595370062,1.07676109,118360.0,118350.0,0.1535]
[1753595370691,1.07676109,118360.0,118350.0,0.1306]
[1753595371105,1.10856109,118360.0,118350.0,0.1306]
[1753595372065,1.09246109,118360.0,118350.0,0.1306]
[1753595372968,1.07676109,118360.0,118350.0,0.1306]
[1753595373812,0.7612757,118360.0,118350.0,0.1306]
[1753595374024,1.07676109,118360.0,118350.0,0.1306]
[1753595374228,1.07676109,118360.0,118350.0,0.1535]
[1753595375025,1.07675921,118360.0,118350.0,0.1535]
[1753595376294,1.07675921,118360.0,118350.0,0.1306]
[1753595377788,1.09175921,118360.0,118350.0,0.1306]
[1753595382770,0.17743965,118350.0,118340.0,0.05913]
[1753595382984,0.57740234,118350.0,118340.0,0.19175]
[1753595384099,0.26191695,118350.0,118340.0,0.19179846]
[1753595384311,0.57740234,118350.0,118340.0,0.19179846]
[1753595384519,0.57840234,118350.0,118340.0,0.19179846]
[1753595384982,0.57940234,118350.0,118340.0,0.19179846]
[1753595385838,0.57940234,118350.0,118340.0,0.19175846]
[1753595386693,0.58791192,118350.0,118340.0,0.19175846]
[1753595389837,0.59007192,118350.0,118340.0,0.04164846]
[1753595390076,0.61759192,118350.0,118340.0,0.17212846]
[1753595390517,0.59007192,118350.0,118340.0,0.17212846]
[1753595392125,0.59007192,118350.0,118340.0,0.18822846]
[1753595392740,0.6059114,118350.0,118340.0,0.18822846]
[1753595392960,0.59007192,118350.0,118340.0,0.18822846]
[1753595393164,0.60591121,118350.0,118340.0,0.18822846]
[1753595396710,0.60591121,118350.0,118340.0,0.17212846]
[1753595400227,0.63160121,118350.0,118340.0,0.17212846]
[1753595403976,0.31611582,118350.0,118340.0,0.17212846]
[1753595404180,0.63160121,118350.0,118340.0,0.17212846]
[1753595405091,0.31611582,118350.0,118340.0,0.17212846]
[1753595405268,0.63160121,118350.0,118340.0,0.17212846]
[1753595406443,0.63160121,118350.0,118340.0,0.15552846]
[1753595407323,0.62309163,118350.0,118340.0,0.15552846]
[1753595407945,0.30760624,118350.0,118340.0,0.15552846]
[1753595408171,0.62309163,118350.0,118340.0,0.15552846]
[1753595411277,0.62310325,118350.0,118340.0,0.15552846]
[1753595411736,0.53862595,118350.0,118340.0,0.15552846]
[1753595412688,0.51604595,118350.0,118340.0,0.17132846]
[1753595412900,0.20056056,118350.0,118340.0,0.17132846]
[1753595413094,0.51604595,118350.0,118340.0,0.17132846]
[1753595414076,0.20056056,118350.0,118340.0,0.17132846]
[1753595414273,0.58467234,118350.0,118340.0,0.17132846]
[1753595414483,0.60052325,118350.0,118340.0,0.17132846]
[1753595416306,0.30761786,118350.0,118340.0,0.17132846]
[1753595416553,0.62310325,118350.0,118340.0,0.15552846]
[1753595417144,0.62310408,118350.0,118340.0,0.15552846]
[1753595417360,0.30761869,118350.0,118340.0,0.15552846]
[1753595417562,0.62310408,118350.0,118340.0,0.15552846]
[1753595423620,0.62310607,118350.0,118340.0,0.15552846]
[1753595426025,0.6231063,118350.0,118340.0,0.15552846]
[1753595427996,0.30762091,118350.0,118340.0,0.15552846]
[1753595428214,0.6231063,118350.0,118340.0,0.15552846]
[1753595428818,0.62310695,118350.0,118340.0,0.15552846]
[1753595431051,0.62310695,118350.0,118340.0,0.13052846]
[1753595431452,0.22314426,118350.0,118340.0,0.13052846]
[1753595431660,0.22314429,118350.0,118340.0,0.17224846]
[1753595432010,0.51293968,118350.0,118340.0,0.17224846]
[1753595435951,0.53719968,118350.0,118340.0,0.17224846]
[1753595437698,0.54031968,118350.0,118340.0,0.17224846]
[1753595437895,0.62479698,118350.0,118340.0,0.17224846]
[1753595445053,0.62479807,118350.0,118340.0,0.17224846]
[1753595446242,0.62479808,118350.0,118340.0,0.17224846]
[1753595446530,0.3093127,118350.0,118340.0,0.17224846]
[1753595446748,0.2248354,118350.0,118340.0,0.17224846]
[1753595446973,0.51606079,118350.0,118340.0,0.17224846]
[1753595447206,0.2005754,118350.0,118340.0,0.17224846]
[1753595447427,0.49708504,118350.0,118340.0,0.17224846]
[1753595447646,0.51294079,118350.0,118340.0,0.17224846]
[1753595448322,0.51294079,118350.0,118340.0,0.18734846]
[1753595448578,0.1974554,118350.0,118340.0,0.19034846]
[1753595448747,0.49708504,118350.0,118340.0,0.19034846]
[1753595448954,0.51294079,118350.0,118340.0,0.19034846]
[1753595449352,0.59741809,118350.0,118340.0,0.19034846]
[1753595449755,0.59741809,118350.0,118340.0,0.17224846]
[1753595450378,0.2819327,118350.0,118340.0,0.17224846]
[1753595450579,0.26607695,118350.0,118340.0,0.18734846]
[1753595450775,0.58156234,118350.0,118340.0,0.18734846]
[1753595451635,0.26607695,118350.0,118340.0,0.18734846]
[1753595452428,0.18159965,118350.0,118340.0,0.18734846]
[1753595452629,0.18159965,118350.0,118340.0,0.50283385]
[1753595452831,0.18159965,118350.0,118340.0,0.18734846]
[1753595456560,0.17943965,118350.0,118340.0,0.67502841]
[1753595456775,0.18788894,118350.0,118340.0,0.67502841]
[1753595457047,0.52788894,118350.0,118340.0,0.67502841]
[1753595458129,0.51943965,118350.0,118340.0,0.35954302]
[1753595458335,0.51943965,118350.0,118340.0,0.67502841]
[1753595458586,0.57983185,118350.0,118340.0,0.50602385]
[1753595458804,0.51099028,118350.0,118340.0,0.50602385]
[1753595463012,0.51099028,118350.0,118340.0,0.19053846]
[1753595463235,0.51099028,118350.0,118340.0,0.50602385]
[1753595464827,0.51099028,118350.0,118340.0,0.19053846]
[1753595465033,0.51099028,118350.0,118340.0,0.50602385]
[1753595468506,0.51099028,118350.0,118340.0,0.19053846]
[1753595468713,0.51099028,118350.0,118340.0,0.50602385]
[1753595469542,0.51099028,118350.0,118340.0,0.19053846]
[1753595469682,0.51099028,118350.0,118340.0,0.50602385]
[1753595479593,0.51308028,118350.0,118340.0,0.50562385]
[1753595483541,0.51308028,118350.0,118340.0,0.50243385]
[1753595484957,0.51308028,118350.0,118340.0,0.50554385]
[1753595485968,0.51099028,118350.0,118340.0,0.50554385]
[1753595487889,0.51099028,118350.0,118340.0,0.67454841]
[1753595489248,0.342,118350.0,118340.0,0.68299849]
[1753595489455,0.36734767,118350.0,118340.0,0.69144843]
[1753595489653,0.37579661,118350.0,118340.0,0.6914485]
[1753595490046,0.38424597,118350.0,118340.0,0.6914485]
[1753595490458,0.3822459,118350.0,118340.0,0.6914485]
[1753595492112,0.01689795,118350.0,118340.0,0.6914485]
[1753595492317,0.03379661,118350.0,118340.0,0.69989844]
[1753595492575,0.03379661,118350.0,118340.0,0.6914485]
[1753595492964,0.03379661,118350.0,118340.0,0.69989844]
[1753595493192,0.03379661,118350.0,118340.0,0.6914485]
[1753595493602,0.00844894,118350.0,118340.0,0.70844831]
[1753595493818,0.01689809,118350.0,118340.0,0.7168981]
[1753595494027,0.02534746,118350.0,118340.0,0.71689774]
[1753595495133,0.02534738,118350.0,118340.0,0.71689774]
[1753595495990,0.02534738,118350.0,118340.0,0.70844802]
[1753595496215,0.03379689,118350.0,118340.0,0.37606297]
[1753595496434,0.03379689,118350.0,118340.0,0.69999823]
[1753595496654,0.03379682,118350.0,118340.0,0.69999823]
[1753595497003,0.02534738,118350.0,118340.0,0.70844802]
[1753595497211,0.02534738,118350.0,118340.0,0.71689774]
[1753595498274,0.02534738,118350.0,118340.0,0.70844802]
[1753595498494,0.03379682,118350.0,118340.0,0.69999823]
[1753595498964,0.03379682,118350.0,118340.0,0.69154836]
[1753595499148,0.03379682,118350.0,118340.0,0.69999823]
[1753595499984,0.04224633,118350.0,118340.0,0.69154836]
[1753595500425,0.03379682,118350.0,118340.0,0.69999823]
[1753595501475,0.02534738,118350.0,118340.0,0.70844802]
[1753595502431,0.03379675,118350.0,118340.0,0.70844802]
[1753595503241,0.03379675,118350.0,118340.0,0.69999823]
[1753595503423,0.03379675,118350.0,118340.0,0.70844795]
[1753595503643,0.03379675,118350.0,118340.0,0.70844802]
[1753595504510,0.03379675,118350.0,118340.0,0.79292532]
[1753595505240,0.02534738,118350.0,118340.0,0.80137504]
[1753595505425,0.02534738,118350.0,118340.0,0.79292532]
[1753595506073,0.03379682,118350.0,118340.0,0.46899006]
[1753595506302,0.03379682,118350.0,118340.0,0.78447545]
[1753595506521,0.03379675,118350.0,118340.0,0.78447545]
[1753595506731,0.03379675,118350.0,118340.0,0.78447553]
[1753595506942,0.04224626,118350.0,118340.0,0.77602566]
[1753595507421,0.04224626,118350.0,118340.0,0.77602594]
[1753595507640,0.03379732,118350.0,118340.0,0.77602594]
[1753595509453,0.19433845,118350.0,118340.0,0.65505054]
[1753595509665,0.19433845,118350.0,118340.0,0.97898608]
[1753595510304,0.19433845,118350.0,118340.0,0.98743609]
[1753595510529,0.19433845,118350.0,118340.0,0.98743616]
[1753595510949,0.19433845,118350.0,118340.0,0.99588617]
[1753595511456,0.02534817,118350.0,118340.0,0.99588617]
[1753595512555,0.02534817,118350.0,118340.0,0.98743616]
[1753595512785,0.02534817,118350.0,118340.0,0.99588617]
[1753595513861,0.02534817,118350.0,118340.0,0.98743616]
[1753595514197,0.02534817,118350.0,118340.0,0.99588617]
[1753595514421,0.02534817,118350.0,118340.0,0.98743616]
[1753595514630,0.02534817,118350.0,118340.0,0.99588617]
[1753595515596,0.02534817,118350.0,118340.0,0.98743616]
[1753595516294,0.19433845,118350.0,118340.0,0.97898608]
[1753595516926,0.19433845,118350.0,118340.0,0.98743609]
[1753595517129,0.19433845,118350.0,118340.0,0.98743616]
[1753595517480,0.19433845,118350.0,118340.0,0.97898608]
[1753595518132,0.19433845,118350.0,118340.0,0.97233616]
[1753595518337,0.19433845,118350.0,118340.0,0.96388608]
[1753595519048,0.19433845,118350.0,118340.0,0.97233616]
[1753595519476,0.19433845,118350.0,118340.0,0.98078617]
[1753595520640,0.19433845,118350.0,118340.0,0.96388608]
[1753595520907,0.19433845,118350.0,118340.0,0.97233616]
[1753595522144,0.01689866,118350.0,118340.0,0.98078617]
[1753595522370,0.01689866,118350.0,118340.0,1.00493604]
[1753595522786,0.02534817,118350.0,118340.0,1.00493611]
[1753595523220,0.02534817,118350.0,118340.0,0.99648617]
[1753595523403,0.02534817,118350.0,118340.0,1.00493611]
[1753595523987,0.02534817,118350.0,118340.0,0.99648617]
[1753595524618,0.19433845,118350.0,118340.0,0.96388608]
[1753595524998,0.19433845,118350.0,118340.0,0.97233609]
[1753595525434,0.19433845,118350.0,118340.0,0.97233616]
[1753595525636,0.19433845,118350.0,118340.0,0.98078617]
[1753595525845,0.02534817,118350.0,118340.0,0.98078617]
[1753595526036,0.02534817,118350.0,118340.0,0.97233616]
[1753595526641,0.02534817,118350.0,118340.0,0.98078617]
[1753595526887,0.02534817,118350.0,118340.0,0.98923611]
[1753595527094,0.02534817,118350.0,118340.0,0.98078617]
[1753595527339,0.02534817,118350.0,118340.0,0.97233616]
[1753595527545,0.02534817,118350.0,118340.0,0.98078617]
[1753595528415,0.02534817,118350.0,118340.0,0.97233616]
[1753595529802,0.02534817,118350.0,118340.0,0.98078617]
[1753595530249,0.02534817,118350.0,118340.0,0.97233616]
[1753595532255,0.02534817,118350.0,118340.0,0.96388608]
[1753595532473,0.19433845,118350.0,118340.0,0.97233616]
[1753595532898,0.19433845,118350.0,118340.0,0.96388608]
[1753595533516,0.19433845,118350.0,118340.0,0.97233616]
[1753595533979,0.19433845,118350.0,118340.0,0.98078617]
[1753595534212,0.19433845,118350.0,118340.0,0.97233616]
[1753595535316,0.19433845,118350.0,118340.0,0.98078617]
[1753595535531,0.19433845,118350.0,118340.0,0.97233616]
[1753595537800,0.19433845,118350.0,118340.0,0.98078617]
[1753595538142,0.3564,118360.0,118350.0,0.18588908]
[1753595538369,0.36534567,118360.0,118350.0,0.66874384]
[1753595538606,0.36534517,118360.0,118350.0,1.10040653]
[1753595538822,0.37379382,118360.0,118350.0,1.10885568]
[1753595539053,0.37379382,118360.0,118350.0,0.79337029]
[1753595539554,0.37479382,118360.0,118350.0,0.79337036]
[1753595539762,0.37579382,118360.0,118350.0,0.78492114]
[1753595540188,0.37579382,118360.0,118350.0,0.79337036]
[1753595541183,0.38424262,118360.0,118350.0,0.78492114]
[1753595541768,0.37579382,118360.0,118350.0,0.78492114]
[1753595541977,0.37579382,118360.0,118350.0,0.79337036]
[1753595543267,0.37579382,118360.0,118350.0,0.80181951]
[1753595543473,0.37579382,118360.0,118350.0,0.79337036]
[1753595544383,0.37579382,118360.0,118350.0,0.78492114]
[1753595544577,0.36734517,118360.0,118350.0,0.79337029]
[1753595544799,0.36734517,118360.0,118350.0,0.78492114]
[1753595545013,0.36734517,118360.0,118350.0,0.79337036]
[1753595545511,0.37579389,118360.0,118350.0,0.79337036]
[1753595545875,0.37579389,118360.0,118350.0,0.76832114]
[1753595546913,0.38424269,118360.0,118350.0,0.75987185]
[1753595547129,0.54477047,118360.0,118350.0,0.41238758]
[1753595547353,0.54477047,118360.0,118350.0,0.73632248]
[1753595547569,0.54687047,118360.0,118350.0,0.73632248]
[1753595547976,0.54687047,118360.0,118350.0,0.72787297]
[1753595548287,0.54687047,118360.0,118350.0,0.72469297]
[1753595548835,0.54687047,118360.0,118350.0,0.40920758]
[1753595549098,0.54687047,118360.0,118350.0,0.72469297]
[1753595549795,0.54687047,118360.0,118350.0,0.73314248]
[1753595550234,0.54687047,118360.0,118350.0,0.72469297]
[1753595550373,0.54687047,118360.0,118350.0,0.73314248]
[1753595550990,0.54687047,118360.0,118350.0,0.72469297]
[1753595551605,0.5384221,118360.0,118350.0,0.72469297]
[1753595554157,0.52997352,118360.0,118350.0,0.72469297]
[1753595557546,0.52997352,118360.0,118350.0,0.92765297]
[1753595561043,0.5215248,118360.0,118350.0,0.92765297]
[1753595564015,0.5215248,118360.0,118350.0,0.61216758]
[1753595564250,0.5215248,118360.0,118350.0,0.92765297]
[1753595566785,0.5638048,118360.0,118350.0,0.60292269]
[1753595567007,0.5638048,118360.0,118350.0,0.4173173]
[1753595567242,0.5638048,118360.0,118350.0,0.73280269]
[1753595567476,0.5795048,118360.0,118350.0,0.73280269]
[1753595567923,0.97946749,118360.0,118350.0,0.33284]
[1753595568944,0.89499019,118360.0,118350.0,0.33284]
[1753595570023,0.5795048,118360.0,118350.0,0.33284]
[1753595570226,0.89499019,118360.0,118350.0,0.33284]
[1753595570559,0.5795048,118360.0,118350.0,0.33284]
[1753595572014,0.5795048,118360.0,118350.0,0.12988]
[1753595582216,0.5795048,118360.0,118350.0,0.44536539]
[1753595585565,0.5795048,118360.0,118350.0,0.46943539]
[1753595585992,0.5795048,118360.0,118350.0,0.15395]
[1753595586214,0.5795048,118360.0,118350.0,0.46943539]
[1753595589235,0.5638048,118360.0,118350.0,0.46943539]
[1753595589710,0.5638048,118360.0,118350.0,0.47143539]
[1753595591523,0.5638048,118360.0,118350.0,0.64042567]
[1753595592704,0.5638048,118360.0,118350.0,0.47143539]
[1753595594037,0.555356,118360.0,118350.0,0.47143539]
[1753595595553,0.555356,118360.0,118350.0,0.64042567]
[1753595599471,0.54091437,118360.0,118350.0,0.64042567]
[1753595599687,0.52152437,118360.0,118350.0,0.64042567]
[1753595600546,0.513076,118360.0,118350.0,0.64042567]
[1753595602340,0.5215248,118360.0,118350.0,0.64042567]
[1753595602612,0.52997338,118360.0,118350.0,0.64042567]
[1753595603602,0.35254858,118360.0,118350.0,0.64042567]
[1753595603794,0.36734567,118360.0,118350.0,0.64362567]
[1753595604270,0.53632167,118360.0,118350.0,0.64362567]
[1753595605612,0.53632167,118360.0,118350.0,0.67632567]
[1753595606066,0.53632167,118360.0,118350.0,0.65982567]
[1753595608717,0.53632167,118360.0,118350.0,0.64362567]
[1753595609162,0.53632167,118360.0,118350.0,0.65982567]
[1753595609372,0.53632167,118360.0,118350.0,0.64362567]
[1753595611436,0.53841167,118360.0,118350.0,0.64362567]
[1753595614045,0.53632167,118360.0,118350.0,0.67492567]